bitfinex-derivatives/quotes_SOLF0:USTF0_20241203
["timestamp","ask_amount","ask_price","bid_price","bid_amount"]
[1733244275463,2.2372,223.4,223.34,2.2377]
[1733244275959,2.2373,223.39,223.33,2.2378]
[1733244276360,10.59358692,223.39,223.27,10.59358692]
[1733244276969,2.2375,223.37,223.31,2.238]
[1733244277765,10.59358692,223.39,223.32,2.2379]
[1733244277968,2.2373,223.38,223.32,2.2379]
[1733244278669,10.59358692,223.39,223.27,10.59358692]
[1733244278869,10.59358692,223.45,223.3,10.59358692]
[1733244279063,10.59358692,223.45,223.31,4.1033]
[1733244279767,2.237,223.42,223.37,2.2374]
[1733244280365,2.237,223.42,223.38,2.2373]
[1733244280569,2.2369,223.43,223.38,2.2373]
[1733244281071,10.59358692,223.42,223.31,2.703]
[1733244281665,2.237,223.41,223.34,2.2377]
[1733244281871,10.59358692,223.42,223.31,2.703]
[1733244282272,12.83058692,223.42,223.31,2.703]
[1733244283071,12.83058692,223.42,223.36,2.2375]
[1733244283472,12.83058692,223.42,223.31,2.703]
[1733244283670,10.59358692,223.45,223.31,2.703]
[1733244283868,10.59358692,223.45,223.33,10.59358692]
[1733244284370,1.3569,223.49,223.36,10.59358692]
[1733244284562,10.59358692,223.51,223.36,10.59358692]
[1733244284878,2.2363,223.49,223.36,10.59358692]
[1733244285362,2.2364,223.48,223.43,2.2368]
[1733244285565,2.2364,223.48,223.36,10.59358692]
[1733244285566,10.59358692,223.48,223.36,10.59358692]
[1733244285769,10.59358692,223.48,223.31,2.703]
[1733244285970,12.82998692,223.48,223.43,2.2368]
[1733244287073,10.59358692,223.48,223.43,2.2368]
[1733244287576,10.59358692,223.48,223.42,2.2369]
[1733244287577,2.2365,223.47,223.42,2.2369]
[1733244287770,10.59358692,223.48,223.35,10.59358692]
[1733244287965,1.2857,223.55,223.35,2.2376]
[1733244287966,10.59358692,223.45,223.35,2.2376]
[1733244288176,2.2367,223.44,223.32,10.59358692]
[1733244288572,2.2367,223.44,223.39,2.2372]
[1733244288773,2.2369,223.43,223.39,2.2372]
[1733244289370,2.2367,223.44,223.32,10.59358692]
[1733244289874,2.2369,223.43,223.32,10.59358692]
[1733244290476,2.2368,223.44,223.32,10.59358692]
[1733244291076,2.2365,223.47,223.35,10.59358692]
[1733244291277,10.59358692,223.48,223.35,10.59358692]
[1733244291476,10.59358692,223.51,223.38,10.59358692]
[1733244291676,10.59358692,223.51,223.39,1.3409]
[1733244291870,10.59358692,223.54,223.41,10.59358692]
[1733244292178,1.2849,223.58,223.44,10.59358692]
[1733244292179,10.59358692,223.57,223.44,10.59358692]
[1733244292370,1.2849,223.58,223.44,10.59358692]
[1733244292570,10.59358692,223.6,223.47,10.59358692]
[1733244292767,2.2354,223.58,223.47,10.59358692]
[1733244292969,10.59358692,223.6,223.45,1.3316]
[1733244293173,38.39419476,223.61,223.47,10.59358692]
[1733244293575,2.2353,223.59,223.47,10.59358692]
[1733244293771,38.39419476,223.61,223.45,1.3316]
[1733244293976,2.2355,223.57,223.49,2.2362]
[1733244294169,38.39419476,223.61,223.45,11.92518692]
[1733244294577,2.2355,223.58,223.52,2.236]
[1733244295173,10.59358692,223.57,223.45,11.92518692]
[1733244295378,10.59358692,223.57,223.45,1.3316]
[1733244295574,16.92514711,223.57,223.45,1.3316]
[1733244295776,16.92514711,223.57,223.4,1.3522]
[1733244296373,2.236,223.52,223.4,1.3522]
[1733244296772,2.2359,223.53,223.48,2.2363]
[1733244296979,16.92514711,223.57,223.4,1.3522]
[1733244297578,16.92514711,223.63,223.42,16.92514711]
[1733244298082,2.2354,223.58,223.53,2.2358]
[1733244298279,16.92514711,223.63,223.42,16.92514711]
[1733244298783,38.38641742,223.65,223.5,16.92514711]
[1733244299285,2.2352,223.61,223.5,16.92514711]
[1733244299579,2.2352,223.61,223.4,1.3522]
[1733244299580,16.92514711,223.64,223.46,16.92514711]
[1733244299781,2.2353,223.59,223.53,2.2358]
[1733244299979,16.92514711,223.64,223.46,16.92514711]
[1733244300278,2.2357,223.55,223.49,2.2362]
[1733244300483,16.92514711,223.6,223.42,16.92514711]
[1733244301581,2.2355,223.57,223.47,2.2364]
[1733244301784,2.2355,223.57,223.42,16.92514711]
[1733244302283,324.91490572,223.67,223.47,16.92514711]
[1733244302680,2.2351,223.61,223.53,2.2359]
[1733244302886,2.2351,223.61,223.47,16.92514711]
[1733244303383,16.92514711,223.67,223.47,16.92514711]
[1733244303686,1.2912,223.68,223.51,16.92514711]
[1733244303883,1.3443,223.7,223.52,4.0318]
[1733244304088,307.98975861,223.72,223.55,16.92514711]
[1733244304282,19.52414711,223.75,223.55,16.92514711]
[1733244305197,16.92514711,223.71,223.55,16.92514711]
[1733244305383,2.599,223.75,223.58,16.92514711]
[1733244305988,2.2339,223.73,223.67,2.2344]
[1733244306191,2.599,223.75,223.58,16.92514711]
[1733244306383,16.92514711,223.73,223.52,20.95694711]
[1733244306691,16.92514711,223.69,223.52,20.95694711]
[1733244306890,16.92514711,223.73,223.52,20.95694711]
[1733244307087,2.2344,223.68,223.62,2.2349]
[1733244307392,16.92514711,223.73,223.52,20.95694711]
[1733244307691,2.2339,223.74,223.67,2.2344]
[1733244308182,2.599,223.75,223.62,16.92514711]
[1733244308383,677.59032861,223.9,223.63,4.1173]
[1733244308384,55.2866725,223.81,223.63,4.1173]
[1733244308681,2.2339,223.73,223.67,2.2344]
[1733244308886,16.92514711,223.77,223.63,4.1173]
[1733244309286,1.3992,223.8,223.63,4.1173]
[1733244310480,1.3992,223.8,223.66,16.92514711]
[1733244310889,2.2334,223.78,223.66,16.92514711]
[1733244311286,2.234,223.72,223.66,2.2345]
[1733244311487,16.92514711,223.77,223.63,4.1173]
[1733244312386,1.3992,223.8,223.63,4.1173]
[1733244312992,2.2333,223.79,223.72,2.2339]
[1733244313289,1.3992,223.8,223.72,2.2339]
[1733244314193,1.3992,223.8,223.63,4.1173]
[1733244314386,2.2338,223.74,223.63,4.1173]
[1733244314594,16.92514711,223.77,223.65,2.2347]
[1733244315092,16.92514711,223.73,223.53,1.4177]
[1733244315282,16.92514711,223.73,223.53,4.1248]
[1733244315685,16.92514711,223.69,223.53,4.1248]
[1733244316085,16.92514711,223.65,223.53,1.2996]
[1733244316289,16.92514711,223.65,223.44,2.7203]
[1733244316595,2.2356,223.57,223.5,2.2362]
[1733244316795,16.92514711,223.61,223.44,4.0199]
[1733244317493,1.4118,223.64,223.44,4.0199]
[1733244317494,16.92514711,223.57,223.44,4.0199]
[1733244317887,16.92514711,223.57,223.46,2.2365]
[1733244318289,16.92514711,223.57,223.38,16.92514711]
[1733244318290,2.2363,223.49,223.38,16.92514711]
[1733244318490,30.35514711,223.63,223.19,257.31571511]
[1733244318491,16.92514711,223.53,223.37,2.7549]
[1733244318793,1.2795,223.52,223.37,2.7549]
[1733244319392,16.92514711,223.49,223.37,2.7549]
[1733244319599,2.237,223.42,223.35,3.5461]
[1733244319794,16.92514711,223.49,223.35,1.3085]
[1733244319997,16.92514711,223.45,223.26,18.28104711]
[1733244320396,1.389,223.44,223.26,18.28104711]
[1733244321595,16.92514711,223.49,223.3,16.92514711]
[1733244321800,2.2366,223.46,223.39,2.2372]
[1733244321992,16.92514711,223.49,223.34,16.92514711]
[1733244322193,1.4195,223.51,223.34,16.92514711]
[1733244322399,1.4195,223.51,223.35,2.771]
[1733244322703,16.92514711,223.57,223.38,16.92514711]
[1733244323396,2.2362,223.5,223.38,16.92514711]
[1733244323798,16.92514711,223.57,223.38,16.92514711]
[1733244324000,16.92514711,223.57,223.44,2.2367]
[1733244324001,2.2361,223.51,223.44,2.2367]
[1733244324303,16.92514711,223.57,223.39,1.384]
[1733244324500,2.2363,223.49,223.42,2.2369]
[1733244324701,16.92514711,223.57,223.39,1.384]
[1733244325204,16.92514711,223.57,223.45,2.2366]
[1733244326105,16.92514711,223.57,223.39,1.384]
[1733244326601,16.92514711,223.53,223.39,1.384]
[1733244326800,16.92514711,223.53,223.39,3.6212]
[1733244327102,16.92514711,223.53,223.39,1.384]
[1733244328606,2.2361,223.51,223.43,2.2368]
[1733244328807,2.2361,223.51,223.39,1.384]
[1733244329198,2.2361,223.51,223.45,2.2366]
[1733244329703,2.2362,223.5,223.39,1.384]
[1733244330006,2.2362,223.5,223.45,2.2367]
[1733244330207,2.2362,223.5,223.39,1.384]
[1733244330501,16.92514711,223.53,223.42,2.2369]
[1733244330702,16.92514711,223.53,223.39,1.384]
[1733244331303,16.92514711,223.53,223.38,16.92514711]
[1733244331911,2.2361,223.51,223.45,2.2366]
[1733244332206,2.8213,223.61,223.42,16.92514711]
[1733244332505,16.92514711,223.66,223.46,16.92514711]
[1733244332704,16.92514711,223.66,223.47,3.8888]
[1733244333111,16.92514711,223.62,223.47,3.8888]
[1733244333504,2.2354,223.58,223.48,2.2363]
[1733244333715,16.92514711,223.62,223.47,3.8888]
[1733244334304,16.92514711,223.66,223.47,3.8888]
[1733244334709,16.92514711,223.66,223.49,16.92514711]
[1733244334905,16.92514711,223.7,223.49,16.92514711]
[1733244335208,2.2345,223.67,223.53,16.92514711]
[1733244335407,16.92514711,223.7,223.53,16.92514711]
[1733244335611,2.6842,223.72,223.53,16.92514711]
[1733244336408,2.2347,223.65,223.59,2.2352]
[1733244336615,16.92514711,223.7,223.49,16.92514711]
[1733244337316,16.92514711,223.66,223.49,16.92514711]
[1733244337709,2.2348,223.64,223.56,2.2355]
[1733244337908,16.92514711,223.7,223.56,2.2355]
[1733244338219,16.92514711,223.7,223.49,16.92514711]
[1733244338508,2.6842,223.72,223.53,16.92514711]
[1733244338710,2.6842,223.72,223.57,16.92514711]
[1733244338920,2.6842,223.72,223.58,2.7196]
[1733244339216,16.92514711,223.78,223.58,2.7196]
[1733244339421,2.234,223.72,223.66,2.2345]
[1733244339718,2.234,223.72,223.6,16.92514711]
[1733244340712,1.3632,223.78,223.6,16.92514711]
[1733244341121,1.3632,223.78,223.64,16.92514711]
[1733244341324,2.2337,223.75,223.67,2.2344]
[1733244341621,2.2337,223.75,223.64,16.92514711]
[1733244341818,1.3632,223.78,223.64,16.92514711]
[1733244342116,2.2336,223.76,223.69,2.2342]
[1733244342316,1.3349,223.83,223.68,16.92514711]
[1733244342516,16.92514711,223.86,223.69,3.9836]
[1733244343121,2.2333,223.79,223.73,2.2338]
[1733244343417,2.2333,223.79,223.69,3.9836]
[1733244343418,16.92514711,223.86,223.69,3.9836]
[1733244343622,16.92514711,223.82,223.69,3.9836]
[1733244343916,1.4014,223.87,223.69,3.9836]
[1733244343917,16.92514711,223.86,223.69,3.9836]
[1733244344121,1.4014,223.87,223.69,2.6885]
[1733244344122,16.92514711,223.82,223.69,2.6885]
[1733244344621,16.92514711,223.82,223.69,1.305]
[1733244344823,1.2875,223.81,223.69,1.305]
[1733244345022,1.2875,223.81,223.56,1.3157]
[1733244345023,1.2875,223.81,223.6,16.92514711]
[1733244345217,16.92514711,223.78,223.6,16.92514711]
[1733244345419,1.4014,223.77,223.6,16.92514711]
[1733244345822,2.2341,223.71,223.66,2.2344]
[1733244346120,1.4014,223.77,223.6,16.92514711]
[1733244346326,1.4014,223.77,223.57,1.305]
[1733244346327,16.92514711,223.73,223.57,1.305]
[1733244346920,16.92514711,223.69,223.48,16.92514711]
[1733244347125,16.92514711,223.65,223.49,1.3692]
[1733244347321,16.92514711,223.65,223.5,2.2361]
[1733244347322,2.2354,223.58,223.5,2.2361]
[1733244347522,1.3297,223.64,223.49,1.3692]
[1733244347929,16.92514711,223.61,223.42,2.6557]
[1733244348227,16.92514711,223.61,223.42,1.34]
[1733244348421,16.92514711,223.61,223.43,2.2368]
[1733244348724,16.92514711,223.61,223.42,1.34]
[1733244348919,2.236,223.52,223.42,3.5769]
[1733244349121,16.92514711,223.61,223.42,1.34]
[1733244349423,16.92514711,223.63,223.42,1.34]
[1733244349424,16.92514711,223.57,223.42,1.34]
[1733244349624,2.2359,223.53,223.42,1.34]
[1733244349926,16.92514711,223.57,223.42,1.34]
[1733244350322,2.2361,223.51,223.42,3.5769]
[1733244351125,16.92514711,223.57,223.42,1.34]
[1733244351331,16.92514711,223.57,223.41,1.3692]
[1733244351727,16.92514711,223.53,223.36,16.92514711]
[1733244351929,1.3299,223.52,223.34,1.4094]
[1733244352724,2.2368,223.44,223.36,2.2374]
[1733244353232,2.2365,223.47,223.38,2.2373]
[1733244353623,1.3299,223.52,223.34,1.4094]
[1733244354331,16.92514711,223.63,223.34,1.4094]
[1733244354332,16.92514711,223.57,223.34,1.4094]
[1733244354632,16.92514711,223.57,223.41,2.237]
[1733244354633,2.236,223.52,223.41,2.237]
[1733244354832,16.92514711,223.57,223.41,2.237]
[1733244355135,2.2363,223.49,223.34,1.4094]
[1733244355438,16.92514711,223.43,223.22,2.7138]
[1733244355635,16.92514711,223.43,223.23,16.92514711]
[1733244355935,16.92514711,223.43,223.23,18.32364711]
[1733244356532,2.2379,223.33,223.23,18.32364711]
[1733244356830,16.92514711,223.43,223.23,18.32364711]
[1733244357631,16.92514711,223.47,223.27,16.92514711]
[1733244358041,16.92514711,223.47,223.31,16.92514711]
[1733244358237,2.8128,223.48,223.31,16.92514711]
[1733244358536,1.3973,223.48,223.35,16.92514711]
[1733244358737,18.24474711,223.55,223.36,1.4028]
[1733244358931,16.92514711,223.55,223.36,2.7213]
[1733244359937,2.2362,223.49,223.41,2.237]
[1733244360432,16.92514711,223.55,223.36,2.7213]
[1733244360632,1.3022,223.56,223.39,16.92514711]
[1733244361434,16.92514711,223.55,223.36,2.7213]
[1733244361634,16.92514711,223.55,223.41,2.237]
[1733244362038,2.2364,223.47,223.39,2.2372]
[1733244362240,16.92514711,223.55,223.36,2.7213]
[1733244362740,2.2362,223.5,223.38,2.2373]
[1733244363042,16.92514711,223.55,223.36,2.7213]
[1733244363440,16.92514711,223.55,223.43,2.2368]
[1733244364142,16.92514711,223.55,223.41,2.237]
[1733244364341,16.92514711,223.55,223.36,2.7213]
[1733244364644,16.92514711,223.51,223.36,2.7213]
[1733244365336,2.2366,223.46,223.39,2.2372]
[1733244365641,1.3196,223.61,223.42,16.92514711]
[1733244365842,2.2355,223.57,223.42,16.92514711]
[1733244366041,1.3196,223.61,223.42,16.92514711]
[1733244366437,1.3196,223.61,223.49,2.2362]
[1733244366837,1.3196,223.61,223.46,16.92514711]
[1733244367237,1.3196,223.61,223.47,2.7077]
[1733244367834,1.3196,223.61,223.48,2.2363]
[1733244368339,2.2359,223.53,223.47,4.9441]
[1733244368540,27.48748457,223.6,223.47,2.7077]
[1733244368940,2.2356,223.56,223.47,2.7077]
[1733244369337,2.2357,223.55,223.49,2.2362]
[1733244369536,27.48748457,223.6,223.47,2.7077]
[1733244369742,1.3196,223.61,223.47,2.7077]
[1733244369942,1.3196,223.61,223.53,2.2358]
[1733244370544,2.2353,223.58,223.53,2.2358]
[1733244371645,1.3196,223.61,223.53,2.2358]
[1733244371846,1.3196,223.61,223.47,2.7077]
[1733244372343,2.2353,223.58,223.47,2.7077]
[1733244372746,1.3196,223.61,223.47,2.7077]
[1733244372942,27.48748457,223.6,223.47,2.7077]
[1733244373148,27.48748457,223.6,223.5,2.236]
[1733244373345,2.2354,223.57,223.47,2.7077]
[1733244373647,1.2928,223.62,223.54,2.2356]
[1733244373848,2.2351,223.6,223.47,2.7077]
[1733244374245,27.48748457,223.68,223.6,2.235]
[1733244374447,1.3426,223.71,223.6,1.54780869]
[1733244375154,1.3426,223.71,223.53,27.48748457]
[1733244375349,2.2348,223.64,223.59,2.2351]
[1733244375849,1.3426,223.71,223.53,27.48748457]
[1733244376255,1.3426,223.71,223.57,27.48748457]
[1733244376553,27.48748457,223.78,223.58,1.3756]
[1733244376755,27.48748457,223.78,223.61,27.48748457]
[1733244376950,27.48748457,223.78,223.58,4.0534]
[1733244377349,27.48748457,223.78,223.65,2.2346]
[1733244377555,27.48748457,223.78,223.58,4.0534]
[1733244377952,2.2339,223.72,223.66,2.2344]
[1733244378153,27.48748457,223.78,223.58,4.0534]
[1733244380758,27.48748457,223.78,223.61,27.48748457]
[1733244380759,2.2339,223.72,223.61,27.48748457]
[1733244381154,2.2339,223.72,223.66,2.2345]
[1733244381859,27.48748457,223.78,223.61,27.48748457]
[1733244382060,2.234,223.71,223.65,2.2346]
[1733244382451,27.48748457,223.78,223.61,27.48748457]
[1733244382658,27.48748457,223.78,223.58,4.0534]
[1733244383054,2.2339,223.72,223.66,2.2345]
[1733244383458,2.2339,223.72,223.58,4.0534]
[1733244383459,27.48748457,223.78,223.61,27.48748457]
[1733244383655,2.2337,223.74,223.69,2.2341]
[1733244384161,2.234,223.72,223.61,27.48748457]
[1733244384360,27.48748457,223.78,223.58,4.0534]
[1733244384952,27.48748457,223.78,223.64,2.2346]
[1733244385153,27.48748457,223.78,223.58,4.0534]
[1733244386558,2.7234,223.82,223.58,4.0534]
[1733244386559,27.48748457,223.74,223.58,4.0534]
[1733244387855,2.2342,223.69,223.62,2.2348]
[1733244388056,27.48748457,223.74,223.58,4.0534]
[1733244388459,2.2341,223.7,223.58,4.0534]
[1733244388659,27.48748457,223.74,223.58,4.0534]
[1733244388959,2.2337,223.74,223.66,2.2345]
[1733244389164,27.48748457,223.78,223.58,4.0534]
[1733244389563,2.234,223.72,223.58,4.0534]
[1733244389764,16.89772943,223.76,223.58,4.0534]
[1733244390258,2.2343,223.69,223.58,4.0534]
[1733244390566,16.89772943,223.76,223.58,4.0534]
[1733244390763,16.89772943,223.76,223.63,2.2347]
[1733244390966,16.89772943,223.76,223.58,4.0534]
[1733244391766,2.2343,223.68,223.63,2.2347]
[1733244391969,16.89772943,223.76,223.58,4.0534]
[1733244392571,2.2339,223.72,223.58,4.0534]
[1733244392968,16.89772943,223.76,223.58,4.0534]
[1733244393264,2.2341,223.71,223.66,2.2344]
[1733244393661,16.89772943,223.76,223.58,4.0534]
[1733244394370,2.2344,223.68,223.64,2.2346]
[1733244395376,2.2341,223.7,223.58,4.0534]
[1733244395575,16.89772943,223.76,223.58,4.0534]
[1733244395775,16.89772943,223.72,223.61,2.2349]
[1733244395979,2.6287,223.71,223.61,2.2349]
[1733244396181,2.6287,223.71,223.53,1.3843]
[1733244396676,16.89772943,223.68,223.53,1.3843]
[1733244396875,2.6287,223.71,223.54,2.2357]
[1733244396876,16.89772943,223.63,223.54,2.2357]
[1733244397880,16.89772943,223.63,223.52,2.2358]
[1733244398075,2.74,223.62,223.45,1.3281]
[1733244398282,2.2354,223.57,223.45,1.3281]
[1733244398580,2.74,223.56,223.51,2.2359]
[1733244398781,2.74,223.56,223.44,18.26932943]
[1733244398782,2.2357,223.54,223.44,18.26932943]
[1733244398976,2.74,223.56,223.47,2.2363]
[1733244399173,2.74,223.56,223.4,16.89772943]
[1733244399374,2.74,223.56,223.38,1.3715]
[1733244399375,16.89772943,223.55,223.38,1.3715]
[1733244399577,16.89772943,223.55,223.4,2.237]
[1733244399981,2.2365,223.46,223.38,1.3715]
[1733244400185,2.74,223.45,223.39,2.2372]
[1733244400381,2.74,223.45,223.31,1.405]
[1733244400382,2.74,223.45,223.32,1.3961]
[1733244400689,4.0471,223.45,223.38,2.2372]
[1733244400880,2.74,223.44,223.32,1.3961]
[1733244401285,2.74,223.44,223.37,2.2374]
[1733244401587,2.74,223.44,223.32,1.3961]
[1733244401780,2.74,223.44,223.4,2.2371]
[1733244402085,16.89772943,223.51,223.32,1.3961]
[1733244402086,2.74,223.43,223.32,1.3961]
[1733244402287,2.74,223.42,223.36,16.89772943]
[1733244402482,2.74,223.43,223.36,16.89772943]
[1733244403082,2.2361,223.51,223.36,16.89772943]
[1733244403286,2.74,223.5,223.4,16.89772943]
[1733244403584,2.74,223.49,223.42,2.2368]
[1733244403785,2.74,223.48,223.36,16.89772943]
[1733244403986,2.74,223.47,223.36,16.89772943]
[1733244404486,2.74,223.46,223.4,16.89772943]
[1733244404686,2.74,223.48,223.4,16.89772943]
[1733244405386,2.74,223.48,223.45,2.2365]
[1733244405584,2.74,223.48,223.4,16.89772943]
[1733244406488,2.74,223.48,223.39,1.3151]
[1733244406789,2.74,223.48,223.32,1.3961]
[1733244406790,2.2364,223.47,223.4,2.237]
[1733244406996,2.74,223.48,223.36,16.89772943]
[1733244407191,2.74,223.48,223.33,1.3234]
[1733244407691,2.74,223.48,223.31,1.405]
[1733244407692,2.2373,223.38,223.31,2.2379]
[1733244407991,2.74,223.37,223.21,16.89772943]
[1733244408386,2.2378,223.33,223.21,16.89772943]
[1733244408592,2.74,223.32,223.21,16.89772943]
[1733244409290,16.89772943,223.44,223.25,16.89772943]
[1733244409493,2.74,223.43,223.25,16.89772943]
[1733244409699,2.74,223.43,223.21,16.89772943]
[1733244409992,2.74,223.42,223.25,16.89772943]
[1733244410399,49.2789,223.47,223.3,16.89772943]
[1733244410400,2.7189,223.47,223.3,16.89772943]
[1733244410688,2.2369,223.42,223.3,16.89772943]
[1733244410889,2.7189,223.47,223.3,16.89772943]
[1733244411093,2.74,223.46,223.3,16.89772943]
[1733244411295,2.2367,223.44,223.37,2.2374]
[1733244412095,2.2368,223.43,223.37,2.2374]
[1733244412287,2.2368,223.43,223.36,2.2375]
[1733244412998,2.237,223.41,223.34,2.2376]
[1733244413197,2.74,223.4,223.26,16.89772943]
[1733244413395,2.2374,223.38,223.31,2.238]
[1733244413596,2.74,223.39,223.21,16.89772943]
[1733244413790,1.3105,223.37,223.21,16.89772943]
[1733244413993,2.2375,223.36,223.21,16.89772943]
[1733244414697,2.74,223.35,223.21,16.89772943]
[1733244414897,2.74,223.35,223.31,2.2379]
[1733244415500,2.74,223.35,223.25,16.89772943]
[1733244415701,2.74,223.35,223.21,16.89772943]
[1733244416503,2.74,223.35,223.19,18.24982943]
[1733244416700,2.74,223.35,223.3,2.238]
[1733244418099,2.74,223.35,223.19,18.24982943]
[1733244418298,2.74,223.35,223.23,16.89772943]
[1733244419604,2.2377,223.34,223.23,16.89772943]
[1733244420202,2.74,223.35,223.19,18.24982943]
[1733244420705,4.1465,223.35,223.19,18.24982943]
[1733244421097,4.1465,223.35,223.19,1.3521]
[1733244421298,16.89772943,223.32,223.22,2.2389]
[1733244422009,2.2382,223.29,223.22,2.2389]
[1733244422206,2.74,223.28,223.22,2.2389]
[1733244422509,4.9783,223.28,223.13,19.56752943]
[1733244422810,2.74,223.27,223.14,1.4141]
[1733244423004,2.2382,223.29,223.14,1.4141]
[1733244423206,1.4065,223.35,223.17,16.89772943]
[1733244423509,2.74,223.34,223.21,16.89772943]
[1733244423709,4.9777,223.34,223.21,16.89772943]
[1733244424107,2.74,223.34,223.21,16.89772943]
[1733244424307,18.29112943,223.42,223.21,16.89772943]
[1733244424505,2.74,223.41,223.21,16.89772943]
[1733244425411,2.2373,223.38,223.32,2.2378]
[1733244425607,2.74,223.41,223.21,16.89772943]
[1733244425912,2.74,223.41,223.19,16.89772943]
[1733244426113,2.74,223.41,223.3,2.2381]
[1733244427003,2.2375,223.36,223.31,2.238]
[1733244427205,2.74,223.35,223.31,2.238]
[1733244428211,2.74,223.34,223.24,16.89772943]
[1733244428409,1.3934,223.42,223.28,16.89772943]
[1733244428609,2.74,223.41,223.37,2.2374]
[1733244429209,16.89772943,223.46,223.28,16.89772943]
[1733244429413,2.74,223.45,223.28,16.89772943]
[1733244429810,2.2368,223.43,223.28,16.89772943]
[1733244430006,16.89772943,223.42,223.25,4.0004]
[1733244430212,2.74,223.45,223.25,2.5861]
[1733244430213,16.89772943,223.38,223.25,2.5861]
[1733244430509,5.4099,223.37,223.25,2.5861]
[1733244431713,2.74,223.36,223.25,2.5861]
[1733244432708,2.74,223.36,223.3,2.2381]
[1733244433010,2.74,223.36,223.25,2.5861]
[1733244433209,2.2376,223.35,223.25,2.5861]
[1733244433410,16.89772943,223.42,223.25,2.5861]
[1733244433611,2.74,223.41,223.25,2.5861]
[1733244433916,2.74,223.42,223.33,16.89772943]
[1733244434109,2.74,223.42,223.29,16.89772943]
[1733244434305,2.2372,223.39,223.34,2.2377]
[1733244434507,2.74,223.42,223.29,16.89772943]
[1733244434711,2.237,223.41,223.29,16.89772943]
[1733244435306,2.74,223.42,223.34,2.2376]
[1733244435812,2.74,223.42,223.25,19.48382943]
[1733244436008,2.74,223.42,223.25,2.5861]
[1733244436316,2.2374,223.38,223.3,2.2381]
[1733244436506,2.2374,223.38,223.25,2.5861]
[1733244436507,2.74,223.42,223.25,2.5861]
[1733244437011,2.2374,223.37,223.25,2.5861]
[1733244437218,2.74,223.36,223.25,2.5861]
[1733244437716,2.74,223.36,223.32,2.2378]
[1733244438508,2.74,223.36,223.25,2.5861]
[1733244438714,2.2377,223.35,223.25,2.5861]
[1733244439115,2.2377,223.35,223.29,2.2381]
[1733244439311,2.74,223.36,223.25,2.5861]
[1733244439715,2.74,223.36,223.28,2.2382]
[1733244440014,2.74,223.36,223.25,2.5861]
[1733244440219,2.74,223.36,223.29,2.2381]
[1733244440715,16.89772943,223.35,223.25,1.2945]
[1733244440919,16.89772943,223.35,223.19,2.7338]
[1733244441220,2.2384,223.28,223.2,1.1202901]
[1733244441420,2.74,223.27,223.21,1.1202901]
[1733244441611,2.74,223.27,223.22,1.1202901]
[1733244441810,4.9784,223.27,223.21,2.2389]
[1733244442018,2.74,223.27,223.19,2.7338]
[1733244442218,2.74,223.27,223.2,1.12034845]
[1733244442418,2.74,223.27,223.19,2.7338]
[1733244443920,4.9784,223.27,223.22,2.2388]
[1733244444217,2.74,223.27,223.19,2.7338]
[1733244444819,2.2387,223.25,223.2,2.239]
[1733244446923,2.2387,223.25,223.18,2.2392]
[1733244447218,2.2388,223.24,223.16,1.3956]
[1733244447715,2.74,223.27,223.18,2.2393]
[1733244448020,2.74,223.27,223.14,2.7755]
[1733244448021,19.63772943,223.27,223.14,2.7755]
[1733244448318,19.63772943,223.27,223.08,16.89772943]
[1733244448319,19.63772943,223.27,223.15,2.2396]
[1733244448831,19.63772943,223.27,223.04,19.60022943]
[1733244448832,16.89772943,223.23,223.04,19.60022943]
[1733244449025,16.89772943,223.19,223.04,2.7025]
[1733244449323,2.2399,223.12,223.08,2.2402]
[1733244449518,2.74,223.11,223.04,2.7025]
[1733244449718,2.74,223.1,223.04,2.7025]
[1733244450016,2.74,223.09,223.04,2.7025]
[1733244450223,2.74,223.08,223.04,2.7025]
[1733244450522,2.74,223.08,223.04,1.3634]